Cogmind - Beta 17 @@@ ROGUE MODE // 2026.07.05 @ 17:53:04 Player: Petvaria Result: Destroyed by D-53 Grenadier with Mini Grenade Launcher Performance ------------- Evolutions (0) 0 Regions Visited (2) 400 Robots Destroyed (25) 125 Value Destroyed (417) 417 Prototype IDs (1) 20 Alien Tech Used (0) 0 Bonus (5500) 5500 TOTAL SCORE: 6462 Bonus ------- Prayed to X0-1V1 5000 Major X0-1V1 Interference 500 Cogmind --------- Core Integrity 0/250 Matter 294/300 Energy 85/100 System Corruption 1% Temperature Cool (8) Movement Treading (320) Ox2 Location -10/Mines Parts ------- > --- POWER (1) -------- (None) > --- PROPULSION (2) --- Light Treads Light Treads > --- UTILITY (2) ------ Huge Storage Unit X0-1V1's Piety Tracker > --- WEAPON (2) ------- Medium Laser Medium Laser > --- INVENTORY (25) --- Ion Engine Light Treads Aluminum Leg Aluminum Leg Compact Wheel Compact Wheel High-capacity Storage Unit High-capacity Matter Pod (200) Seismic Detector Light Armor Plating Hacking Suite Hacking Suite Tractor Beam Medium Laser Medium Laser Medium Laser Small Laser Light Assault Rifle Light Assault Rifle Light Assault Rifle Datajack Peak State ------------ > --- POWER ------------ Ion Engine > --- PROPULSION ------- Light Treads Light Treads > --- UTILITY ---------- Huge Storage Unit X0-1V1's Piety Tracker > --- WEAPON ----------- Medium Laser Light Assault Rifle > --- INVENTORY -------- Ion Engine Light Treads Aluminum Leg Aluminum Leg Compact Wheel Compact Wheel High-capacity Storage Unit High-capacity Matter Pod Seismic Detector Light Armor Plating Hacking Suite Hacking Suite Tractor Beam Medium Laser Medium Laser Medium Laser Medium Laser Small Laser Light Assault Rifle Light Assault Rifle Datajack [Rating: 21] Favorites ----------- Power Ion Engine Engine Ion Engine Propulsion Light Treads Treads Light Treads Leg Aluminum Leg Wheel Compact Wheel Utility Huge Storage Unit Device X0-1V1's Piety Tracker Storage Huge Storage Unit Hackware Hacking Suite Protection Light Armor Plating Weapon Light Assault Rifle Energy Gun Medium Laser Ballistic Gun Light Assault Rifle Build | -11 -10 -10 ------- Run | Yrd Mat Min Slots Evolved . | . . . Power . | . . . Propulsion . | . . . Utility . | . . . Weapon . | . . . Parts Attached 19 | 7 10 2 Power 1 | 1 . . Engine 1 | 1 . . Core . | . . . Reactor . | . . . Propulsion 5 | 2 3 . Treads 3 | 2 1 . Leg 1 | . 1 . Wheel 1 | . 1 . Hover . | . . . Flight . | . . . Utility 8 | 2 5 1 Device 4 | 1 2 1 Storage 2 | 1 1 . Processor . | . . . Hackware 1 | . 1 . Protection 1 | . 1 . Artifact . | . . . Weapon 5 | 2 2 1 Energy Gun 3 | 1 1 1 Energy Cannon . | . . . Ballistic Gun 2 | 1 1 . Ballistic Cannon . | . . . Launcher . | . . . Special Weapon . | . . . Impact Weapon . | . . . Slashing Weapon . | . . . Piercing Weapon . | . . . Special Melee Weapon . | . . . Unidentified Prototypes 1 | . 1 . Parts Lost 4 | . 3 1 Power 1 | . . 1 Propulsion 1 | . 1 . Utility 1 | . 1 . Weapon 1 | . 1 . Highest Loss Streak 2 | . 2 1 To Critical Strikes . | . . . Average Backups 13 | 4 13 20 Power . | . 1 1 Propulsion 3 | 2 3 5 Utility 4 | . 4 6 Weapon 3 | . 3 7 Tool/Special . | . . . Unused Backups 16 | . 1 15 Power 1 | . . 1 Propulsion 3 | . . 3 Utility 6 | . 1 5 Weapon 5 | . . 5 Tool/Special 1 | . . 1 Average Slot Usage (%) 96 | . 96 100 Engine 14 | . 14 14 Treads 24 | . 24 28 Wheel 2 | . 3 . Device 3 | . 2 10 Storage 14 | . 14 14 Protection 9 | . 10 3 Energy Gun 7 | . 7 14 Ballistic Gun 18 | . 18 14 Peak Build Rating 21 | 7 21 21 Average Rating 9 | 4 9 18 On Entrance 9 | . 7 21 Avg Prop Armor Cover (%) 10 | . 10 . Naked Turns . | . . . Heaviest Build 91 | 13 91 91 Greatest Support 40 | 40 40 40 Greatest Overweight (x) 5 | . 5 2 Average Overweight (x) 2 | . 2 2 Largest Inventory Capacity 25 | 8 25 25 Average Capacity 23 | 6 24 25 Most Carried 21 | 7 21 21 Average Carried 13 | 4 13 20 Final Capacity 25 | 8 25 25 Final Carried 21 | 6 21 21 Class Distribution -------------------- 100% | Mutant Dominant Class ---------------- Mutant | -10/Materials Mutant | -10/Mines Resources | -11 -10 -10 ----------- Run | Yrd Mat Min Matter Collected 753 | 274 449 30 Remotely . | . . . Salvage Created 874 | 101 744 29 Parts 59 | 7 44 8 Haulers Intercepted 2 | . 2 . Recyclers Shooed 7 | 1 6 . Parts Field Recycled . | . . . Retrieved Matter . | . . . Parts Self-Destructed . | . . . Prevented . | . . . Parts Restored . | . . . Kills | -11 -10 -10 ------- Run | Yrd Mat Min Combat Hostiles Destroyed 12 | . 10 2 Guns 12 | . 10 2 Classes Destroyed 7 | 2 5 . Worker 2 | . 2 . Tunneler 2 | 1 . 1 Hauler 2 | . 2 . Recycler 4 | 1 3 . Operator 3 | . 3 . Swarmer 4 | . 2 2 Grunt 8 | . 8 . Best Kill Streak 3 | 2 3 2 Combat Bots Only 2 | . 2 2 Max Kills in Single Turn 2 | 1 2 2 Gunslinging 1 | . . 1 Exploded . | . . . Melee . | . . . Uniques/NPCs Destroyed . | . . . Combat | -11 -10 -10 -------- Run | Yrd Mat Min Hostile Shots Fired 93 | . 87 6 Missed 27 | . 25 2 Hits 66 | . 62 4 Projectile 66 | . 62 4 AOE 5 | . . 5 Critical Strikes 1 | . 1 . Damage Taken 990 | . 772 218 Core 258 | . 158 100 Absorbed by Shields . | . . . Regen/Repaired (Parts) 102 | . 102 . Core Remaining (%) 100 | 100 . . Volleys Fired 99 | 4 93 2 Largest 2 | 2 2 2 Hottest 100 | 60 70 100 Shots Fired 182 | 8 170 4 Gun 182 | 8 170 4 Cannon . | . . . Launcher . | . . . Special . | . . . Kinetic 142 | 4 137 1 Thermal 40 | 4 33 3 Explosive . | . . . Electromagnetic . | . . . Robot Hit Streak 13 | 6 13 5 Robot Miss Streak 4 | 1 4 . Penetration Max . | . . . Secondary Targets 2 | . 1 1 Max Gunslinging Chain 1 | . 1 1 Shots Hit Robots 124 | 7 113 4 Core Hits 57 | 4 50 3 Critical Kills 1 | . 1 . Critical Parts Destroyed . | . . . Critical Strikes 2 | . 1 1 Burn 1 | . . 1 Destroy 1 | . 1 . Melee Attacks . | . . . Impact . | . . . Slashing . | . . . Piercing . | . . . Sneak Attacks . | . . . Combat Hostiles . | . . . Follow-up Attacks . | . . . Damage Inflicted 1167 | 67 1054 46 Guns 1133 | 67 1020 46 Cannons . | . . . Explosions . | . . . Melee . | . . . Ramming 34 | . 34 . Kinetic 824 | 36 780 8 Thermal 309 | 31 240 38 Explosive . | . . . Electromagnetic . | . . . Impact . | . . . Slashing . | . . . Piercing . | . . . Highest Corruption 1 | . 1 1 Average Corruption 1 | . 1 1 Corruption Purged . | . . . Corruption Blocked . | . . . Effects 3 | . 2 1 Matter Fused 2 | . 1 1 Heat Flow Errors 1 | . 1 . Overload Shots . | . . . Overflow Damage . | . . . Projectiles . | . . . Explosions . | . . . Melee . | . . . Knockbacks . | . . . Impact . | . . . Kinetic . | . . . Secondary . | . . . Self-Inflicted Damage 2 | . 2 . Shots . | . . . Rammed 5 | . 5 . Targets Rammed 7 | . 6 1 Kicked . | . . . Crushed 2 | . 1 1 Highest Temperature 260 | 20 260 36 Average Temperature 63 | 15 65 17 Received Heat Transfer 360 | . 360 . Effects 2 | . 2 . Interference 2 | . 2 . Siege Activations . | . . . Martial Activations . | . . . Shielding Activations . | . . . Robots Disrupted . | . . . Combat Hostiles . | . . . Robots Corrupted . | . . . Combat Hostiles . | . . . Parts Fried . | . . . Impact Corruptions . | . . . Robots Melted . | . . . Combat Hostiles . | . . . Parts Melted . | . . . Heat Transferred 857 | 75 597 185 Parts Sabotaged . | . . . Parts Stolen . | . . . Parts Stripped . | . . . Power Chain Reactions . | . . . Alert | -11 -10 -10 ------- Run | Yrd Mat Min Maximum Alert Level . | . . . Low Security (%) 100 | 100 100 100 Level 1 . | . . . Level 2 . | . . . Level 3 . | . . . Level 4 . | . . . Level 5 . | . . . High Security . | . . . Max Security . | . . . Peak Influence 87 | 10 87 54 Initial 4 | . . 4 Average 13 | 1 14 15 Influence Increases 453 | 10 388 55 Destroy 0b10 Robot/C 240 | . 200 40 Destroy 0b10 Robot/NC 65 | 10 50 5 Destroy Leader 74 | . 64 10 Successful Hack 13 | . 13 . Destroy Structure 1 | . 1 . Partial Spotted 15 | . 15 . Lose Combat Pursuer 45 | . 45 . Influence Decreases 453 | 10 375 68 Entered New Map 9 | . . 9 Time Decay 424 | 10 355 59 Lost Part 20 | . 20 . Squads Dispatched 4 | . 4 . Investigation 1 | . 1 . Extermination . | . . . Reinforcement 3 | . 3 . Assault . | . . . Garrison . | . . . Intercept . | . . . Searches Triggered . | . . . Construction Impeded . | . . . Haulers Reinforced . | . . . Active Scanning Responses . | . . . Cargo Convoy Interrupts . | . . . Stealth | -11 -10 -10 --------- Run | Yrd Mat Min Distress Signals 3 | . 3 . Communications Jammed . | . . . Distress Signals . | . . . Times Spotted 51 | . 46 5 Peak Tracking Total 7 | . 7 2 Tactical Retreats 2 | . 2 . Traps | -11 -10 -10 ------- Run | Yrd Mat Min Traps Triggered 1 | . 1 . Indirectly . | . . . Trap Hack Attempts . | . . . Triggered . | . . . Disarmed . | . . . Reprogrammed . | . . . Reused . | . . . Traps Extracted . | . . . Installed . | . . . Triggered . | . . . Machines | -11 -10 -10 ---------- Run | Yrd Mat Min Machines Disabled . | . . . Max in Single Turn . | . . . Machines Repaired . | . . . Machines Dismantled . | . . . Machines Sabotaged . | . . . Overloaded Fab Kills . | . . . Hacking | -11 -10 -10 --------- Run | Yrd Mat Min Machines Accessed 6 | . 6 . Terminals 4 | . 4 . Fabricators . | . . . Repair Stations 1 | . 1 . Recycling Units 1 | . 1 . Scanalyzers . | . . . Garrison Access . | . . . Total Hacks 13 | . 13 . Successful 9 | . 9 . Failed 4 | . 4 . Catastrophic 1 | . 1 . Database Lockouts . | . . . Manual 10 | . 10 . Terminals 9 | . 9 . Fabricators . | . . . Repair Stations 2 | . 2 . Recycling Units 2 | . 2 . Scanalyzers . | . . . Garrison Access . | . . . Terminal Hacks 2 | . 2 . Part Schematic 1 | . 1 . Robot Schematic 1 | . 1 . Fabricator Hacks . | . . . Repair Station Hacks 2 | . 2 . Scan Component 1 | . 1 . Repair 1 | . 1 . Recycling Unit Hacks 1 | . 1 . Retrieve Components 1 | . 1 . Scanalyzer . | . . . Garrison Access Hacks . | . . . Unauthorized Hacks 4 | . 4 . Terminals 4 | . 4 . Botnet 4 | . 4 . Fabricators . | . . . Repair Stations . | . . . Recycling Units . | . . . Scanalyzers . | . . . Garrison Access . | . . . Data Cores Recovered . | . . . Used . | . . . Hacking Detections 5 | . 5 . Full Trace Events 1 | . 1 . Feedback Events 1 | . 1 . Corruption 1 | . 1 . Feedback Blocked . | . . . Robot Schematics Acquired 1 | . 1 . Robots Built . | . . . Authchips . | . . . Time . | . . . Total Robot Build Rating . | . . . Part Schematics Acquired 1 | . 1 . Parts Built . | . . . Authchips . | . . . Time . | . . . Total Part Build Rating . | . . . Part Studies Acquired . | . . . Parts Repaired 1 | . 1 . Time 26 | . 26 . Parts Recycled . | . . . Recycled Matter . | . . . Retrieved Matter . | . . . Retrieved Components 10 | . 10 . Parts Scanalyzed . | . . . Part Schematics Acquired . | . . . Parts Damaged . | . . . Bothacking | -11 -10 -10 ------------ Run | Yrd Mat Min Used RIF Installer . | . . . Robots Hacked . | . . . Non-combat . | . . . Combat . | . . . Robot Hacks Applied . | . . . Relay Couplers Released . | . . . Fabnet Peak Effective % . | . . . Robots Rewired . | . . . Allies Hacked . | . . . Hacks Repelled . | . . . Allies | -11 -10 -10 -------- Run | Yrd Mat Min Total Allies 1 | . . 1 Largest Group 1 | . . 1 Highest-Rated Group 31 | . . 31 Highest-Rated Ally 31 | . . 31 Total Orders . | . . . Ally Attacks 1 | . . 1 Total Damage 20 | . . 20 Kills . | . . . Allies Corrupted . | . . . Allies Melted . | . . . X0-1V1 Amusement Gains 98 | . 8 90 Bad Acts 1 | . 1 . Intel | -11 -10 -10 ------- Run | Yrd Mat Min Active Infowar (turns) 163 | 33 130 . Seismic 163 | 33 130 . Robot Analysis Total . | . . . Derelict Logs Recovered . | . . . Drone Launches . | . . . Drone Recoveries . | . . . Exploration | -11 -10 -10 ------------- Run | Yrd Mat Min Turns Passed 2685 | 135 2329 221 Spaces Moved 869 | 71 733 65 Core 7 | 7 . . Treads 644 | 64 515 65 Legs . | . . . Wheels 218 | . 218 . Hover . | . . . Flight . | . . . Fastest Speed 50 | 50 160 320 Average Speed 265 | 149 271 320 Slowest Speed 480 | 160 480 320 Overloaded Moves . | . . . Propulsion Burnouts . | . . . Robots Hopped . | . . . Potential Cave-ins . | . . . Cave-ins Triggered . | . . . Exploration Rate (%) 38 | 4 92 20 Regions Visited 2 Branch Regions 1 Pre-discovered Areas . | . . . Known Exits Taken . | . . . Unknown Exits Taken 2 | 1 1 . Scrap Searched 1 | . . 1 Spaces Dug . | . . . Terrain Destroyed . | . . . Melee . | . . . Projectile . | . . . AOE . | . . . Terrain Rammed . | . . . Walls Destroyed . | . . . Machines Disabled . | . . . Actions | -11 -10 -10 --------- Run | Yrd Mat Min Total 1081 | 93 916 72 Wait 47 | . 47 . Move 867 | 70 732 65 Hop . | . . . Pick Up 35 | 12 22 1 Fast Attach 1 | 1 . . Attach 12 | 6 6 . Detach . | . . . Swap 10 | . 7 3 Drop 3 | . 3 . Fire 99 | 4 93 2 Melee . | . . . Ram 2 | . 2 . Kick . | . . . Crush 5 | . 4 1 Escape Stasis . | . . . Rewire . | . . . Trap . | . . . Miscellaneous . | . . . Route ------- -11/Scrapyard -10/Materials (discovered 4 exits: [*Mat x2] / [*Min] / [*Sub]) -10/Mines History --------- Turn | Location | Event 21 | -11/Scrapyard | Discovered new exit (range 15) 136 | -11/Scrapyard | Entered Materials 300 | -10/Materials | Build established: Mutant 503 | -10/Materials | Repaired Lgt. Treads 830 | -10/Materials | Discovered new exit (range 13) 858 | -10/Materials | Core integrity fell below 50% 1500 | -10/Materials | Discovered new exit (range 10) 1683 | -10/Materials | Discovered new exit (range 8) 1995 | -10/Materials | Discovered new exit (range 10) 2184 | -10/Materials | Prayed at D.C.S.S. Altar Unit 2318 | -10/Materials | X0-1V1 announced a LAN party 2465 | -10/Materials | Entered Mines 2523 | -10/Mines | Received a Mining Laser from a helpful Derelict 2672 | -10/Mines | Assembled infested the area 2684 | -10/Mines | Core integrity fell below 20% 2686 | -10/Mines | Destroyed by D-53 Grenadier with Mini Grenade Launcher Last Messages --------------- than you might think..." Searching scrap... Found Aluminum Leg. Found 36 Matter. Acquired 24 matter. System corrupted: Matter fused (-7). Crushed T-07 Excavator. T-07 Excavator destroyed. Acquired 6 matter. ALERT: Infestation in the mines, dispatching Demolisher response squad. X0-1V1 thinks this is hilarious! C-45 Heavy ARC bursts open, deploying its payload. D-53 Grenadier unfolds itself. K-01 Serf destroyed. Ion Engine destroyed. SA-SC2(g) destroyed. D-53 Grenadier suffers critical hit (Burn). X0-1V1 howls with laughter! Map ----- +----------------------------------------------------+ | ?????????????????????????????????????????????????? | | ?????????????????????????????????????????????????? | | ?????????????????????????????????????????????????? | | ?????????????????????????????????????????????????? | | ?????????????????????????????????????????????????? | | ?????????????????????????????????????????????????? | | ?????????????????????????????????????????????????? | | ?????????????????????????????????????????????????? | | ?????????????????????????????????????????????????? | | ?????????????????????????????????????????????????? | | ?????????????????????????????????????????????????? | | ??###????????????????????????????????????????????? | | ?? #????????????????????????????????????????????? | | ?? #???????? ????????????????????????????????? | | ?? #???????? ????????????????????????????????? | | ## ###?????? ???????????????????????????????? | | # ##????? ??????????????????????????????? | | [ #?????# ??????????????????????????????? | | =%* #?????# ??????????????????????????????? | | =%== #????## ???????????????????????????????? | | [%= #??## ??????####?????????#???????????? | | ## = #?## ???##### ###???? #???????????? | | ??# ##?# ???# ### #???????????? | | ???#####??# #???## #???????????? | | ########### #???# = #????????????? | | #?# #???# *%@ d #???????????????????? | | #??# ##### %d#???????????????????? | | ######## #??# = #??????????????????? | | ??????## #### ##### ##??????????????????? | | ?????## ## ##???##### # #???????????????????? | | ?????# ##???????? #???????????????????? | | ?????# ###????????? $#???????????????????? | | ????# ##???????????###?##???????????????????? | | ???# ###?????????????????????????????????????? | | ???# ##???????????????????????????????????????? | | ???# #?????????????????????????????????????????? | | ???# #??????????????????????????????????????????? | | ???###???????????????????????????????????????????? | | ?????????????????????????????????????????????????? | | ?????????????????????????????????????????????????? | | ?????????????????????????????????????????????????? | | | | | | | | | | | | | | | | | | | +----------------------------------------------------+ Best States ------------- Heat Dissipation 25 Energy Generation 10 Energy Capacity 250 Matter Stores 300 Matter Capacity 300 Sight Range 16 Terrain Scan Density 10 Armor Coverage 150 Evasion (%) 40 Recoil Reduction 2 Item Schematics ----------------- Huge Storage Unit | -10/Materials | Hacked Robot Schematics ------------------ M-13 Machinist | -10/Materials | Hacked Fabricated ------------ Nothing Repaired ---------- Lgt. Treads | 27% | -10/Materials Studied --------- None Alien Tech Used ----------------- None Achievements -------------- None Challenges ------------ None Game ------ Seed OvertunedDeflectorTorch Manual? 0 Play Time 00:11:57 Cumulative 484.3 hours Start 2026.07.05 @ 16:19:59 End 2026.07.05 @ 17:53:04 Sessions 2 Manual Loads 0 Difficulty Rogue Special Mode None Game No. 294 Rogue 294 Adventurer 0 Explorer 0 Win Type - Total 32 Types 16/1/7/2/1/1/1/1/0/2 Lore% 95 Gallery% 91 Achievement% 82 Wizard Run 0 Options --------- Layout 1 ASCII 0 Keyboard 0 Movement Numpad Keybinds 0 Fullscreen 1 Font 24/Proggy Map View 50x35 Zoom Use 0% Tactical HUD 0 Map Filters NONE Filters NONE Steam 1 RUN: fa5595a7-c6f7-4afd-9bb5-fd3ea088f732